fUST/lending_fUST_20250301
["ID","MTS","AMOUNT","RATE_DAILY","PERIOD"]
[354905886,1740809448135,-500.0,0.00038996,2]
[354905887,1740809448146,-500.0,0.00038996,2]
[354905888,1740809448157,-151.0,0.00038996,7]
[354905889,1740809448168,-1014.12,0.00038996,2]
[354905890,1740809448179,-247.390395,0.00038996,7]
[354905891,1740809448189,-500.0,0.00038996,2]
[354905892,1740809448200,-500.0,0.00038996,2]
[354905893,1740809448215,-812.665492,0.00038996,14]
[354905894,1740809448227,-812.665492,0.00038996,14]
[354905895,1740809448237,-812.665492,0.00038996,14]
[354905896,1740809448247,-812.665492,0.00038996,14]
[354905897,1740809448258,-835.85,0.00038996,2]
[354905898,1740809448277,-812.665492,0.00038996,14]
[354905899,1740809448289,-812.665492,0.00038996,14]
[354905900,1740809448300,-812.665492,0.00038996,14]
[354905901,1740809448310,-812.665492,0.00038996,14]
[354905902,1740809448319,-1335.13,0.00038996,2]
[354905903,1740809448329,-500.0,0.00038996,2]
[354905904,1740809448339,-19436.47,0.00038996,2]
[354905905,1740809448349,-503.37120963,0.00038996,2]
[354905906,1740809448359,-500.0,0.00038996,2]
[354905907,1740809448369,-724.753343,0.00038996,14]
[354905908,1740809448379,-724.753343,0.00038996,14]
[354905909,1740809448390,-724.753343,0.00038996,14]
[354905910,1740809448403,-724.753343,0.00038996,14]
[354905911,1740809448413,-500.0,0.00038996,2]
[354905912,1740809448423,-724.753343,0.00038996,14]
[354905913,1740809448433,-724.753343,0.00038996,14]
[354905914,1740809448443,-406.66655941,0.00038996,2]
[354905915,1740809448453,-724.753343,0.00038996,14]
[354905916,1740809448463,-724.753343,0.00038996,14]
[354905917,1740809448474,-816.03,0.00038996,2]
[354905918,1740809448483,-2143.05,0.00038996,2]
[354905919,1740809448493,-1763.506796,0.00038996,14]
[354905920,1740809448503,-1763.506796,0.00038996,14]
[354905921,1740809448512,-1763.506796,0.00038996,14]
[354905922,1740809448522,-1763.506796,0.00038996,14]
[354905923,1740809448532,-500.0,0.00038996,2]
[354905924,1740809448542,-1763.506796,0.00038996,14]
[354905925,1740809448552,-1763.506796,0.00038996,14]
[354905926,1740809448562,-1763.506796,0.00038996,14]
[354905927,1740809448572,-161.969022,0.00038996,14]
[354905928,1740809448582,-500.0,0.00038996,2]
[354905929,1740809448591,-1763.506796,0.00038996,14]
[354905930,1740809448601,-161.969022,0.00038996,14]
[354905931,1740809448611,-161.969022,0.00038996,14]
[354905932,1740809448621,-161.969022,0.00038996,14]
[354905933,1740809448631,-500.0,0.00038996,2]
[354905934,1740809448642,-500.0,0.00038996,2]
[354905935,1740809448651,-161.969022,0.00038996,14]
[354905936,1740809448661,-161.969022,0.00038996,14]
[354905937,1740809448671,-161.969022,0.00038996,14]
[354905938,1740809448680,-500.0,0.00038996,2]
[354905939,1740809448690,-161.969022,0.00038996,14]
[354905940,1740809448701,-621.42163615,0.00038996,2]
[354905941,1740809448711,-500.0,0.00038996,2]
[354905942,1740809448720,-500.0,0.00038996,2]
[354905943,1740809448730,-590.158248,0.00038996,14]
[354905944,1740809448740,-590.158248,0.00038996,14]
[354905945,1740809448750,-590.158248,0.00038996,14]
[354905946,1740809448759,-590.158248,0.00038996,14]
[354905947,1740809448769,-500.0,0.00038996,2]
[354905948,1740809448778,-590.158248,0.00038996,14]
[354905949,1740809448788,-590.158248,0.00038996,14]
[354905950,1740809448798,-590.158248,0.00038996,14]
[354905951,1740809448808,-590.158248,0.00038996,14]
[354905952,1740809448817,-1468.39,0.00038996,2]
[354905953,1740809448828,-151.0,0.00038996,14]
[354905954,1740809448837,-151.0,0.00038996,14]
[354905955,1740809448846,-151.0,0.00038996,14]
[354905956,1740809448856,-151.0,0.00038996,14]
[354905957,1740809448866,-181.434084,0.00038996,14]
[354905958,1740809448875,-157.251157,0.00038996,14]
[354905959,1740809448886,-500.0,0.00038996,2]
[354905960,1740809448896,-181.434084,0.00038996,14]
[354905961,1740809448906,-181.434084,0.00038996,14]
[354905962,1740809448916,-157.251157,0.00038996,14]
[354905963,1740809448926,-181.434084,0.00038996,14]
[354905964,1740809448935,-157.251157,0.00038996,14]
[354905965,1740809448945,-501.68550757,0.00038996,2]
[354905966,1740809448955,-157.251157,0.00038996,14]
[354905967,1740809448965,-181.434084,0.00038996,14]
[354905968,1740809448975,-157.251157,0.00038996,14]
[354905969,1740809448985,-181.434084,0.00038996,14]
[354905970,1740809448995,-157.251157,0.00038996,14]
[354905971,1740809449005,-181.434084,0.00038996,14]
[354905972,1740809449015,-500.0,0.00038996,2]
[354905973,1740809449024,-181.434084,0.00038996,14]
[354905974,1740809449034,-500.0,0.00038996,2]
[354905975,1740809449045,-901.89,0.00038996,2]
[354905976,1740809449055,-501.58502566,0.00038996,2]
[354905977,1740809449065,-500.0,0.00038996,2]
[354905978,1740809449075,-500.0,0.00038996,2]
[354905979,1740809449085,-500.0,0.00038996,2]
[354905980,1740809449095,-500.0,0.00038996,2]
[354905981,1740809449105,-500.0,0.00038996,2]
[354905982,1740809449115,-710.57,0.00038996,2]
[354905983,1740809449125,-500.0,0.00038996,2]
[354905984,1740809449135,-500.0,0.00038996,2]
[354905985,1740809449146,-500.0,0.00038996,2]
[354905986,1740809449156,-500.0,0.00038996,2]
[354905987,1740809449165,-550.67,0.00038996,2]
[354905988,1740809449176,-500.0,0.00038996,2]
[354905989,1740809449187,-500.0,0.00038996,2]
[354905990,1740809449197,-500.0,0.00038996,2]
[354905991,1740809449211,-500.0,0.00038996,2]
[354905992,1740809449221,-231.467165,0.00038996,14]
[354905993,1740809449231,-500.0,0.00038996,2]
[354905994,1740809449242,-231.467165,0.00038996,14]
[354905995,1740809449251,-231.467165,0.00038996,14]
[354905996,1740809449261,-500.0,0.00038996,2]
[354905997,1740809449271,-231.467165,0.00038996,14]
[354905998,1740809449282,-231.467165,0.00038996,14]
[354905999,1740809449291,-500.0,0.00038996,2]
[354906000,1740809449301,-231.467165,0.00038996,14]
[354906001,1740809449311,-500.0,0.00038996,2]
[354906002,1740809449320,-2500.008198,0.00038996,14]
[354906003,1740809449330,-2500.008198,0.00038996,14]
[354906004,1740809449340,-2500.008198,0.00038996,14]
[354906005,1740809449350,-521.29,0.00038996,2]
[354906006,1740809449359,-472.71977151,0.00038996,2]
[354906007,1740809449370,-2500.008198,0.00038996,14]
[354906008,1740809449379,-2500.008198,0.00038996,14]
[354906009,1740809449389,-500.0,0.00038996,2]
[354906010,1740809449398,-2500.008198,0.00038996,14]
[354906011,1740809449409,-500.0,0.00038996,2]
[354906012,1740809449419,-1464.37,0.00038996,2]
[354906013,1740809449430,-500.0,0.00038996,2]
[354906014,1740809449439,-340.317342,0.00038996,14]
[354906015,1740809449449,-203.412894,0.00038996,14]
[354906016,1740809449459,-340.317342,0.00038996,14]
[354906017,1740809449469,-203.412894,0.00038996,14]
[354906018,1740809449479,-340.317342,0.00038996,14]
[354906019,1740809449488,-203.412894,0.00038996,14]
[354906020,1740809449498,-340.317342,0.00038996,14]
[354906021,1740809449507,-203.412894,0.00038996,14]
[354906022,1740809449517,-500.0,0.00038996,2]
[354906023,1740809449526,-413.93583879,0.00038996,2]
[354906024,1740809449536,-340.317342,0.00038996,14]
[354906025,1740809449545,-340.317342,0.00038996,14]
[354906026,1740809449556,-203.412894,0.00038996,14]
[354906027,1740809449565,-340.317342,0.00038996,14]
[354906028,1740809449575,-203.412894,0.00038996,14]
[354906029,1740809449584,-203.412894,0.00038996,14]
[354906030,1740809449594,-340.317342,0.00038996,14]
[354906031,1740809449603,-203.412894,0.00038996,14]
[354906032,1740809449613,-500.0,0.00038996,2]
[354906033,1740809449622,-525.37108251,0.00038996,2]
[354906034,1740809449631,-10000.0,0.00038997,2]
[354906035,1740809449641,-10000.0,0.00038997,2]
[354906036,1740809449651,-5918.2763405,0.00038997,2]
[354906037,1740809449660,-1703.80001539,0.00038997,10]
[354906038,1740809449670,-164.93799115,0.00038997,2]
[354906039,1740809449679,-5000.0,0.00038997,120]
[354906040,1740809449689,-151.0,0.00038997,14]
[354906041,1740809449698,-480.343942,0.00038997,14]
[354906042,1740809449708,-480.343942,0.00038997,14]
[354906043,1740809449718,-151.0,0.00038997,14]
[354906044,1740809449727,-153.592137,0.00038997,14]
[354906045,1740809449737,-151.0,0.00038997,14]
[354906046,1740809449746,-151.0,0.00038997,14]
[354906047,1740809449756,-151.0,0.00038997,14]
[354906048,1740809449766,-151.0,0.00038997,14]
[354906049,1740809449775,-151.0,0.00038997,14]
[354906050,1740809449784,-151.0,0.00038997,14]
[354906051,1740809449794,-330.562871,0.00038997,14]
[354906052,1740809449803,-291.193328,0.00038997,14]
[354906053,1740809449813,-330.562871,0.00038997,14]
[354906054,1740809449823,-291.193328,0.00038997,14]
[354906055,1740809449833,-151.0,0.00038997,14]
[354906056,1740809449842,-151.0,0.00038997,14]
[354906057,1740809449931,-151.0,0.00038997,14]
[354906058,1740809449941,-151.0,0.00038997,14]
[354906059,1740809449950,-470.801824,0.00038997,14]
[354906060,1740809449960,-470.801824,0.00038997,14]
[354906061,1740809449969,-470.801824,0.00038997,14]
[354906062,1740809449979,-470.801824,0.00038997,14]
[354906063,1740809449988,-673.094461,0.00038997,14]
[354906064,1740809449997,-673.094461,0.00038997,14]
[354906065,1740809450007,-673.094461,0.00038997,14]
[354906066,1740809450016,-673.094461,0.00038997,14]
[354906067,1740809450026,-241.958555,0.00038997,14]
[354906068,1740809450035,-241.958555,0.00038997,14]
[354906069,1740809450045,-241.958555,0.00038997,14]
[354906070,1740809450054,-241.958555,0.00038997,14]
[354906071,1740809450063,-151.0,0.00038997,14]
[354906072,1740809450073,-151.0,0.00038997,14]
[354906073,1740809450082,-151.0,0.00038997,14]
[354906074,1740809450091,-151.0,0.00038997,14]
[354906075,1740809450101,-1741.664304,0.00038997,14]
[354906076,1740809450111,-500.0,0.00038997,2]
[354906077,1740809450122,-1741.664304,0.00038997,14]
[354906078,1740809450131,-151.0,0.00038997,14]
[354906079,1740809450144,-1169.12,0.00038997,2]
[354906080,1740809450162,-151.0,0.00038997,14]
[354906081,1740809450179,-1092.84,0.00038997,2]
[354906082,1740809450188,-439.01498,0.00038997,14]
[354906083,1740809450199,-151.0,0.00038997,14]
[354906084,1740809450215,-439.01498,0.00038997,14]
[354906085,1740809450225,-439.01498,0.00038997,14]
[354906086,1740809450235,-439.01498,0.00038997,14]
[354906087,1740809450244,-502.66,0.00038997,2]
[354906088,1740809450254,-503.21789531,0.00038997,14]
[354906089,1740809450263,-500.0,0.00038997,2]
[354906090,1740809450272,-500.0,0.00038997,2]
[354906091,1740809450284,-902.5,0.00038997,2]
[354906092,1740809450293,-324.42375,0.00038997,14]
[354906093,1740809450302,-324.42375,0.00038997,14]
[354906094,1740809450311,-500.0,0.00038997,2]
[354906095,1740809450321,-500.0,0.00038997,2]
[354906096,1740809450330,-375.79904528,0.00038997,2]
[354906097,1740809450339,-324.42375,0.00038997,14]
[354906098,1740809450348,-324.42375,0.00038997,14]
[354906099,1740809450358,-500.0,0.00038997,2]
[354906100,1740809450367,-500.0,0.00038997,2]
[354906101,1740809450376,-828.26,0.00038997,2]
[354906102,1740809450386,-151.0,0.00038997,14]
[354906103,1740809450395,-151.0,0.00038997,14]
[354906104,1740809450405,-407.07592528,0.00038997,2]
[354906105,1740809450415,-500.0,0.00038997,2]
[354906106,1740809450427,-718.88,0.00038997,2]
[354906107,1740809450436,-718.88,0.00038997,2]
[354906108,1740809450447,-718.88,0.00038997,2]
[354906109,1740809450456,-718.88,0.00038997,2]
[354906110,1740809450466,-718.88,0.00038997,2]
[354906111,1740809450475,-718.88,0.00038997,2]
[354906112,1740809450485,-718.88,0.00038997,2]
[354906113,1740809450494,-718.88,0.00038997,2]
[354906114,1740809450504,-718.88,0.00038997,2]
[354906115,1740809450513,-718.88,0.00038997,2]
[354906116,1740809450523,-718.88,0.00038997,2]
[354906117,1740809450533,-718.88,0.00038997,2]
[354906118,1740809450542,-718.88,0.00038997,2]
[354906119,1740809450551,-500.0,0.00038997,2]
[354906120,1740809450561,-500.0,0.00038997,2]
[354906121,1740809450570,-500.0,0.00038997,2]
[354906122,1740809450580,-500.0,0.00038997,2]
[354906123,1740809450589,-500.0,0.00038997,2]
[354906124,1740809450599,-724.753343,0.00038997,14]
[354906125,1740809450609,-724.753343,0.00038997,14]
[354906126,1740809450618,-1763.506796,0.00038997,14]
[354906127,1740809450628,-1763.506796,0.00038997,14]
[354906128,1740809450637,-500.0,0.00038997,2]
[354906129,1740809450646,-161.969022,0.00038997,14]
[354906130,1740809450656,-161.969022,0.00038997,14]
[354906131,1740809450665,-590.158248,0.00038997,14]
[354906132,1740809450676,-590.158248,0.00038997,14]
[354906133,1740809450686,-500.0,0.00038997,2]
[354906134,1740809450695,-291.148032,0.00038997,14]
[354906135,1740809450705,-181.434084,0.00038997,14]
[354906136,1740809450715,-157.251157,0.00038997,14]
[354906137,1740809450724,-157.251157,0.00038997,14]
[354906138,1740809450734,-181.434084,0.00038997,14]
[354906139,1740809450743,-500.0,0.00038997,2]
[354906140,1740809450753,-558.25,0.00038997,2]
[354906141,1740809450762,-24553.43836809,0.00038997,2]
[354906142,1740809451745,500.0,0.00036655,5]
[354906143,1740809453069,-0.07289298,0.00037799,15]
[354906144,1740809454015,500.0,0.00033164,5]
[354906145,1740809472296,500.0,0.00031506,5]
[354906146,1740809473405,1351.43417135,0.0003,2]
[354906147,1740809494063,500.0,0.00029931,5]
[354906148,1740809515264,500.0,0.00028434,5]
[354906149,1740809536496,500.0,0.00027012,2]
[354906150,1740810117417,10000.0,0.0002,2]
[354906153,1740810425134,-436.11206827,0.00029406,2]
[354906154,1740810426086,-9.22744823,0.00029406,2]
[354906155,1740810426109,-400.0,0.00030999,2]
[354906156,1740810426131,-252.1923477,0.00031,10]
[354906157,1740810426153,-850.64921958,0.00031,10]
[354906158,1740810426175,-850.64921958,0.00031,10]
[354906159,1740810426197,-505.92435291,0.00031,10]
[354906160,1740810426220,-230.16789702,0.00033376,2]
[354906161,1740810440091,-56.83210298,0.00033376,2]
[354906162,1740810440115,-445.3395165,0.00034406,2]
[354906163,1740810440139,-825.93232972,0.000362,98]
[354906164,1740810440162,-825.93232968,0.000362,98]
[354906165,1740810440186,-154.01556,0.00036484,14]
[354906166,1740810440209,-328.330599,0.00036528,2]
[354906167,1740810440232,-10231.51156212,0.0003656,2]
[354906168,1740810450167,-825.93232968,0.000362,98]
[354906169,1740810450192,-974.2439161,0.0003656,2]
[354906173,1740810547117,-13694.24452178,0.0003656,2]
[354906174,1740810547141,-160.0,0.00036763,3]
[354906175,1740810547166,-296.5432131,0.00036852,2]
[354906176,1740810547192,-205.6574963,0.000369,7]
[354906177,1740810566144,-154.01556,0.00037161,14]
[354906178,1740810566172,-205.65749612,0.00037321,7]
[354906179,1740810566198,-205.65749612,0.00037742,8]
[354906180,1740810566222,-154.01556,0.00037837,14]
[354906181,1740810566244,-160.0,0.0003787,4]
[354906219,1740810632608,-205.65749612,0.00038163,8]
[354906220,1740810632622,-825.93232968,0.0003825,110]
[354906221,1740810632632,-398.1761742,0.00038488,5]
[354906224,1740810632811,-101.8238258,0.00038488,5]
[354906225,1740810632822,-154.01556,0.00038514,14]
[354906226,1740810632833,-1335.34170098,0.00038573,2]
[354906227,1740810632843,-205.65749612,0.00038584,8]
[354906228,1740810632854,-9535.86,0.000386,30]
[354906229,1740810632864,-235.19404112,0.000387,2]
[354906230,1740810632875,-786.4061039,0.00038709,4]
[354906231,1740810632885,-235.19404108,0.00038722,2]
[354906232,1740810632895,-235.19404108,0.00038743,2]
[354906233,1740810632906,-235.19404108,0.00038765,2]
[354906234,1740810632916,-154.01556,0.0003877,3]
[354906235,1740810632926,-235.19404108,0.00038786,2]
[354906236,1740810632937,-3000.0,0.0003879,2]
[354906237,1740810632948,-500.0,0.00038794,2]
[354906238,1740810632958,-199.92710702,0.00038794,15]
[354906239,1740810632968,-500.0,0.00038794,2]
[354906240,1740810632979,-500.0,0.00038794,2]
[354906241,1740810632990,-500.0,0.00038794,2]
[354906242,1740810633000,-193.43836371,0.00038794,2]
[354906314,1740810643727,-127.98899544,0.00038785,3]
[354906364,1740810647281,-100.34100456,0.00038785,3]
[354906365,1740810647290,-243.97127155,0.00038794,2]
[354906366,1740810654033,150.0,0.00036665,2]
[354906369,1740810887557,10000.0,0.0002,2]
[354906371,1740811150997,10000.0,0.0003,10]
[354906373,1740811643435,-160.0,0.00026,3]
[354906374,1740811643459,-5481.13234061,0.00026,3]
[354906375,1740811745127,-7388.05965138,0.00026,3]
[354906376,1740811745151,-203.73848752,0.000269,4]
[354906377,1740811745173,-150.0,0.000279,2]
[354906378,1740811745197,-203.73848745,0.00028005,4]
[354906379,1740811745219,-151.25448418,0.00029111,5]
[354906380,1740811749123,-52.48400327,0.00029111,5]
[354906381,1740811749147,-9068.95457919,0.0003,2]
[354906382,1740811749172,-203.73848745,0.00030216,5]
[354906383,1740811749199,-203.73848745,0.00031321,6]
[354906384,1740811749221,-203.73848745,0.00032426,6]
[354906385,1740811755132,-232.3792632,0.00033532,2]
[354906386,1740811755158,-203.73848745,0.00033532,6]
[354906387,1740811755182,-203.73848745,0.00034637,7]
[354906388,1740811755204,-696.38,0.0003499,3]
[354906389,1740811755225,-83322.2806671,0.00035,2]
[354906390,1740811762092,-6626.7193319,0.00035,2]
[354906391,1740811762113,-505.14955512,0.00035,2]
[354906392,1740811762137,-203.73848745,0.00035742,7]
[354906393,1740811762160,-437.64984691,0.00036099,2]
[354906394,1740811762183,-515.82239682,0.00036198,2]
[354906395,1740811762207,-515.82239682,0.00036198,2]
[354906396,1740811762233,-515.82239682,0.00036198,2]
[354906397,1740811762258,-515.82239682,0.00036198,2]
[354906398,1740811762280,-515.82239682,0.00036198,2]
[354906399,1740811762303,-515.82239682,0.00036198,2]
[354906400,1740811762327,-515.82239682,0.00036198,2]
[354906401,1740811762350,-515.82239682,0.00036198,2]
[354906402,1740811762373,-515.82239682,0.00036198,2]
[354906403,1740811762395,-515.82239682,0.00036198,2]
[354906404,1740811762417,-515.82239682,0.00036198,2]
[354906405,1740811762439,-515.82239682,0.00036198,2]
[354906406,1740811762461,-515.82239682,0.00036198,2]
[354906407,1740811762484,-515.82239682,0.00036198,2]
[354906408,1740811762507,-515.82239682,0.00036198,2]
[354906409,1740811762530,-515.82239682,0.00036198,2]
[354906410,1740811762552,-515.82239682,0.00036198,2]
[354906411,1740811762575,-515.82239682,0.00036198,2]
[354906412,1740811762598,-515.82239682,0.00036198,2]
[354906413,1740811762620,-515.82239682,0.00036198,2]
[354906414,1740811762643,-515.82239682,0.00036198,2]
[354906415,1740811762665,-515.82239682,0.00036198,2]
[354906416,1740811762688,-515.82239682,0.00036198,2]
[354906417,1740811762711,-515.82239682,0.00036198,2]
[354906418,1740811762735,-515.82239682,0.00036198,2]
[354906419,1740811762759,-515.82239682,0.00036198,2]
[354906420,1740811762781,-515.82239682,0.00036198,2]
[354906421,1740811762804,-515.82239682,0.00036198,2]
[354906422,1740811762826,-515.82239682,0.00036198,2]
[354906423,1740811762848,-515.82239682,0.00036198,2]
[354906424,1740811762870,-515.82239682,0.00036198,2]
[354906425,1740811762894,-515.82239682,0.00036198,2]
[354906426,1740811762917,-515.82239682,0.00036198,2]
[354906427,1740811762941,-515.82239682,0.00036198,2]
[354906428,1740811762964,-515.82239682,0.00036198,2]
[354906429,1740811762989,-515.82239682,0.00036198,2]
[354906430,1740811763017,-515.82239682,0.00036198,2]
[354906431,1740811763042,-515.82239682,0.00036198,2]
[354906432,1740811763071,-515.82239682,0.00036198,2]
[354906433,1740811763096,-515.82239682,0.00036198,2]
[354906434,1740811763122,-515.82239682,0.00036198,2]
[354906435,1740811763147,-515.82239682,0.00036198,2]
[354906436,1740811763173,-515.82239682,0.00036198,2]
[354906437,1740811763198,-515.82239682,0.00036198,2]
[354906438,1740811763224,-515.82239682,0.00036198,2]
[354906439,1740811763252,-515.82239682,0.00036198,2]
[354906440,1740811763278,-515.82239682,0.00036198,2]
[354906441,1740811763302,-515.82239682,0.00036198,2]
[354906442,1740811763326,-515.82239682,0.00036198,2]
[354906443,1740811763348,-515.82239682,0.00036198,2]
[354906444,1740811763371,-515.82239682,0.00036198,2]
[354906445,1740811763393,-515.82239682,0.00036198,2]
[354906446,1740811763417,-515.82239682,0.00036198,2]
[354906447,1740811763440,-515.82239682,0.00036198,2]
[354906448,1740811763462,-515.82239682,0.00036198,2]
[354906449,1740811763486,-515.82239682,0.00036198,2]
[354906450,1740811763511,-515.82239682,0.00036198,2]
[354906451,1740811763535,-515.82239682,0.00036198,2]
[354906452,1740811763558,-515.82239682,0.00036198,2]
[354906453,1740811763581,-515.82239682,0.00036198,2]
[354906454,1740811763604,-515.82239682,0.00036198,2]
[354906455,1740811763627,-515.82239682,0.00036198,2]
[354906456,1740811763651,-515.82239682,0.00036198,2]
[354906457,1740811763675,-515.82239682,0.00036198,2]
[354906458,1740811763698,-515.82239682,0.00036198,2]
[354906459,1740811763721,-515.82239682,0.00036198,2]
[354906460,1740811763746,-515.82239682,0.00036198,2]
[354906461,1740811763769,-515.82239682,0.00036198,2]
[354906462,1740811763792,-515.82239682,0.00036198,2]
[354906463,1740811763815,-515.82239682,0.00036198,2]
[354906464,1740811763837,-515.82239682,0.00036198,2]
[354906465,1740811763859,-515.82239682,0.00036198,2]
[354906466,1740811763882,-515.82239682,0.00036198,2]
[354906467,1740811763904,-2245.64589396,0.00036198,2]
[354906468,1740811763926,-2245.64589396,0.00036198,2]
[354906469,1740811763948,-2245.64589396,0.00036198,2]
[354906470,1740811763971,-2245.64589396,0.00036198,2]
[354906471,1740811763996,-2245.64589396,0.00036198,2]
[354906472,1740811764019,-2245.64589396,0.00036198,2]
[354906473,1740811764043,-2245.64589396,0.00036198,2]
[354906474,1740811764066,-2245.64589396,0.00036198,2]
[354906475,1740811764088,-2245.64589396,0.00036198,2]
[354906476,1740811764110,-2245.64589396,0.00036198,2]
[354906477,1740811764132,-2245.64589396,0.00036198,2]
[354906478,1740811764155,-2245.64589396,0.00036198,2]
[354906479,1740811764177,-2245.64589396,0.00036198,2]
[354906480,1740811764200,-2245.64589396,0.00036198,2]
[354906481,1740811764223,-2245.64589396,0.00036198,2]
[354906482,1740811764247,-2245.64589396,0.00036198,2]
[354906483,1740811764269,-4122.25844422,0.000362,98]
[354906484,1740811764291,-4122.25844422,0.000362,98]
[354906485,1740811764313,-4122.25844422,0.000362,98]
[354906486,1740811764336,-460.92,0.000362,7]
[354906487,1740811764357,-500.0,0.000362,3]
[354906488,1740811764379,-500.0,0.000362,5]
[354906489,1740811764401,-500.0,0.000362,5]
[354906490,1740811764423,-500.0,0.000362,5]
[354906491,1740811764445,-500.0,0.000362,5]
[354906492,1740811764468,-500.0,0.000362,5]
[354906493,1740811764488,-500.0,0.000362,5]
[354906494,1740811764510,-500.0,0.000362,5]
[354906495,1740811764531,-500.0,0.000362,5]
[354906496,1740811764551,-500.0,0.000362,5]
[354906497,1740811764572,-500.0,0.000362,5]
[354906498,1740811764594,-8089.109926,0.00036238,2]
[354906499,1740811764615,-164.165299,0.00036704,2]
[354906500,1740811764637,-437.64984691,0.00036796,2]
[354906501,1740811764661,-203.73848745,0.00036847,7]
[354906502,1740811764684,-4122.25844422,0.00037003,102]
[354906503,1740811764705,-154.01556,0.0003729,3]
[354906504,1740811764727,-154.01556,0.0003734,3]
[354906505,1740811764749,-154.01556,0.0003739,3]
[354906506,1740811764771,-154.01556,0.0003744,3]
[354906507,1740811764793,-437.64984691,0.00037493,2]
[354906508,1740811764814,-500.0,0.000375,2]
[354906509,1740811764834,-484.35393846,0.00037671,30]
[354906510,1740811764855,-500.0,0.00037798,2]
[354906511,1740811764875,-460.92,0.000378,7]
[354906512,1740811764895,-484.35393846,0.0003789,30]
[354906513,1740811764918,-203.73848745,0.00037953,8]
[354906514,1740811764939,-232.11,0.0003799,3]
[354906515,1740811764960,-500.0,0.00037999,2]
[354906516,1740811764983,-1999.99,0.00038,120]
[354906517,1740811765009,-4000.0,0.00038,120]
[354906518,1740811765031,-260.03548214,0.00038,120]
[354906523,1740811804023,615.30934532,0.000362,2]
[354906524,1740811804053,500.0,0.000362,5]
[354906525,1740811804105,325.12137843,0.000362,5]
[354906526,1740811804137,500.0,0.000362,3]
[354906527,1740811823721,500.0,0.00036199,2]
[354906528,1740811823957,500.0,0.00036473,2]
[354906529,1740811825678,500.0,0.00036199,2]
[354906530,1740811825936,200.17509123,0.00036473,2]
[354906577,1740811835413,500.0,0.00036199,2]
[354906579,1740811838170,730.1,0.00036199,2]
[354906594,1740811838452,730.1,0.00036473,2]
[354906610,1740811838610,-500.0,0.00037999,2]
[354906612,1740811838620,-1826.34,0.00037999,5]
[354906614,1740811838631,-1664.15,0.00037999,2]
[354906616,1740811838640,-2301.74,0.00037999,2]
[354906618,1740811838650,-500.0,0.00037999,2]
[354906620,1740811838660,-1601.23,0.00037999,2]
[354906622,1740811838669,-739.96451786,0.00038,120]
[354906624,1740811838679,-1999.99,0.00038,120]
[354906626,1740811838688,-484.35393846,0.0003811,30]
[354906628,1740811838698,-437.64984691,0.0003819,2]
[354906630,1740811838707,-2000.02,0.000382,120]
[354906632,1740811838717,-979.9595442,0.00038217,4]
[354906634,1740811838727,-500.0,0.00038273,2]
[354906636,1740811838736,-500.0,0.00038273,2]
[354906638,1740811838746,-1826.34,0.00038273,5]
[354906639,1740811838755,-1664.15,0.00038273,2]
[354906641,1740811838765,-2301.74,0.00038273,2]
[354906643,1740811838774,-250.16499472,0.00038273,2]
[354906645,1740811838784,-1601.23,0.00038273,2]
[354906647,1740811838794,-154.01556,0.00038295,4]
[354906649,1740811838805,-484.35393846,0.00038329,30]
[354906651,1740811838815,-183.23655593,0.000385,7]
[354906653,1740811838824,-484.35393846,0.00038521,30]
[354906655,1740811838833,-500.0,0.00038547,2]